fUST/lending_fUST_20241016
["ID","MTS","AMOUNT","RATE_DAILY","PERIOD"]
[340360619,1729086636567,-151.0,0.00014779,2]
[340360620,1729086636578,-151.0,0.00014779,2]
[340360621,1729086636588,-178.554549,0.00014779,2]
[340360622,1729086636598,-178.554549,0.00014779,2]
[340360623,1729086636608,-178.554549,0.00014779,2]
[340360624,1729086636618,-178.554549,0.00014779,2]
[340360625,1729086636627,-178.554549,0.00014779,2]
[340360626,1729086636636,-151.0,0.00014779,2]
[340360627,1729086636646,-178.554549,0.00014779,2]
[340360628,1729086636655,-178.554549,0.00014779,2]
[340360629,1729086636665,-178.554549,0.00014779,2]
[340360630,1729086636675,-178.554549,0.00014779,2]
[340360631,1729086636685,-178.554549,0.00014779,2]
[340360632,1729086636695,-194.338631,0.00014962,2]
[340360633,1729086636707,-420.0,0.00015945,2]
[340360634,1729086636719,-500.0,0.00015973,2]
[340360635,1729086636729,-500.0,0.00015973,2]
[340360636,1729086636739,-500.0,0.00015973,2]
[340360637,1729086636749,-500.0,0.00015973,2]
[340360638,1729086636758,-500.0,0.00015973,2]
[340360639,1729086636770,-503.99187716,0.00015973,2]
[340360640,1729086636779,-500.0,0.00015973,2]
[340360641,1729086636793,-500.0,0.00015973,2]
[340360642,1729086636803,-502.10079398,0.00015973,2]
[340360643,1729086636813,-500.0,0.00015973,2]
[340360644,1729086636825,-172.23040798,0.00015973,2]
[340360645,1729086636835,-312.6223274,0.00015973,2]
[340360646,1729086636845,-500.0,0.00015989,2]
[340360647,1729086636855,-370.51560138,0.00015989,2]
[340360648,1729086636864,-500.0,0.00015989,2]
[340360649,1729086636874,-500.0,0.00015989,2]
[340360650,1729086636883,-240.0,0.00015989,2]
[340360651,1729086636893,-500.0,0.00015989,2]
[340360652,1729086636903,-500.0,0.00015989,2]
[340360653,1729086636912,-500.0,0.00015989,2]
[340360654,1729086636922,-500.0,0.00015989,2]
[340360655,1729086636931,-500.0,0.00015989,2]
[340360656,1729086636941,-500.0,0.00015989,2]
[340360657,1729086636950,-500.0,0.00015989,2]
[340360658,1729086636960,-500.0,0.00015989,2]
[340360659,1729086636970,-500.0,0.00015989,2]
[340360660,1729086636979,-500.0,0.00015989,2]
[340360661,1729086636988,-640.0783368,0.00015989,2]
[340360662,1729086636999,-500.0,0.00015989,2]
[340360663,1729086637009,-39069.4718952,0.0001599,2]
[340360664,1729086637021,-24143.93010599,0.0001599,2]
[340360701,1729086640775,-70804.80063611,0.0001599,2]
[340360702,1729086640785,-151.0,0.00015998,2]
[340360703,1729086640796,-151.0,0.00015998,2]
[340360704,1729086640805,-151.0,0.00015998,2]
[340360705,1729086640816,-151.0,0.00015998,2]
[340360706,1729086640826,-151.0,0.00015998,2]
[340360707,1729086640836,-151.0,0.00015998,2]
[340360708,1729086640848,-1520.97030267,0.00016,2]
[340360709,1729086640858,-500.0,0.00016,2]
[340360710,1729086640867,-500.0,0.00016,2]
[340360711,1729086640876,-151.0,0.00016,2]
[340360712,1729086640887,-151.0,0.00016,2]
[340360713,1729086640896,-151.0,0.00016,2]
[340360714,1729086640906,-557.270984,0.00016,2]
[340360715,1729086640915,-151.0,0.00016,2]
[340360716,1729086640924,-245.538655,0.00016,2]
[340360717,1729086640934,-151.0,0.00016,2]
[340360718,1729086640944,-245.538655,0.00016,2]
[340360719,1729086640953,-151.0,0.00016,2]
[340360720,1729086640963,-151.0,0.00016,2]
[340360721,1729086640972,-1032.786721,0.00016,2]
[340360722,1729086640983,-1032.786721,0.00016,2]
[340360723,1729086640992,-1032.786721,0.00016,2]
[340360724,1729086641002,-1032.786721,0.00016,2]
[340360725,1729086641011,-328.713992,0.00016,2]
[340360726,1729086641023,-328.713992,0.00016,2]
[340360727,1729086641033,-151.0,0.00016,2]
[340360728,1729086641042,-214.579956,0.00016,2]
[340360729,1729086641051,-151.0,0.00016,2]
[340360730,1729086641061,-151.0,0.00016,2]
[340360731,1729086641070,-151.0,0.00016,2]
[340360732,1729086641080,-151.0,0.00016,2]
[340360733,1729086641090,-151.0,0.00016,2]
[340360734,1729086641100,-151.0,0.00016,2]
[340360735,1729086641110,-151.0,0.00016,2]
[340360736,1729086641121,-10000.0,0.00016,2]
[340360737,1729086641131,-10000.0,0.00016,2]
[340360738,1729086641140,-10000.0,0.00016,2]
[340360739,1729086641151,-10000.0,0.00016,2]
[340360740,1729086641162,-10000.0,0.00016,2]
[340360741,1729086641171,-10000.0,0.00016,2]
[340360742,1729086641182,-10000.0,0.00016,2]
[340360743,1729086641193,-10000.0,0.00016,2]
[340360744,1729086641204,-10000.0,0.00016,2]
[340360745,1729086641214,-10000.0,0.00016,2]
[340360746,1729086641225,-10000.0,0.00016,2]
[340360747,1729086641236,-10000.0,0.00016,2]
[340360748,1729086641247,-10000.0,0.00016,2]
[340360749,1729086641259,-10000.0,0.00016,2]
[340360750,1729086641271,-10000.0,0.00016,2]
[340360751,1729086641281,-151.0,0.00016,2]
[340360752,1729086641291,-151.0,0.00016,2]
[340360753,1729086641302,-151.0,0.00016,2]
[340360754,1729086641313,-151.0,0.00016,2]
[340360755,1729086641323,-151.0,0.00016,2]
[340360756,1729086641333,-151.0,0.00016,2]
[340360757,1729086641345,-151.0,0.00016,2]
[340360758,1729086641357,-151.0,0.00016,2]
[340360759,1729086641368,-151.0,0.00016,2]
[340360760,1729086641378,-151.0,0.00016,2]
[340360761,1729086641388,-284.232335,0.00016,2]
[340360762,1729086641398,-172.13994,0.00016,2]
[340360763,1729086641407,-172.13994,0.00016,2]
[340360764,1729086641418,-172.13994,0.00016,2]
[340360765,1729086641428,-172.13994,0.00016,2]
[340360766,1729086641438,-172.13994,0.00016,2]
[340360767,1729086641448,-172.13994,0.00016,2]
[340360768,1729086641458,-172.13994,0.00016,2]
[340360769,1729086641468,-172.13994,0.00016,2]
[340360770,1729086641479,-172.13994,0.00016,2]
[340360771,1729086641488,-172.13994,0.00016,2]
[340360772,1729086641498,-172.13994,0.00016,2]
[340360773,1729086641509,-172.139941,0.00016,2]
[340360774,1729086641520,-1000.0,0.00016,2]
[340360775,1729086641529,-151.0,0.00016,2]
[340360776,1729086641539,-542.49454714,0.00016,2]
[340360777,1729086641549,-151.0,0.00016,2]
[340360778,1729086641559,-151.0,0.00016,2]
[340360779,1729086641568,-227.14455,0.00016,2]
[340360780,1729086641578,-1000.0,0.00016,2]
[340360781,1729086641588,-1000.0,0.00016,2]
[340360782,1729086641599,-1000.0,0.00016,2]
[340360783,1729086641611,-549.88213609,0.00016,2]
[340360784,1729086641620,-178.554549,0.00016,2]
[340360785,1729086641629,-178.554549,0.00016,2]
[340360786,1729086641639,-178.554549,0.00016,2]
[340360787,1729086641648,-151.0,0.00016,2]
[340360788,1729086641658,-178.554549,0.00016,2]
[340360789,1729086641668,-151.0,0.00016,2]
[340360790,1729086641677,-178.554549,0.00016,2]
[340360791,1729086641686,-156.513401,0.00016,2]
[340360792,1729086641696,-178.554549,0.00016,2]
[340360793,1729086641705,-178.554549,0.00016,2]
[340360794,1729086641718,-178.554549,0.00016,2]
[340360795,1729086641728,-178.554549,0.00016,2]
[340360796,1729086641738,-178.554547,0.00016,2]
[340360797,1729086641747,-420.0,0.00016019,2]
[340360798,1729086641758,-1500.0,0.0001604,2]
[340360799,1729086641769,-1500.0,0.0001604,2]
[340360800,1729086641779,-1500.0,0.0001604,2]
[340360801,1729086641789,-1500.0,0.0001604,2]
[340360802,1729086641801,-13023.1572984,0.00016067,2]
[340360803,1729086641811,-23737.1826855,0.00016067,2]
[340360804,1729086641821,-151.0,0.00016077,2]
[340360805,1729086641830,-151.0,0.00016077,2]
[340360806,1729086641841,-245.538655,0.00016077,2]
[340360807,1729086641851,-245.538655,0.00016077,2]
[340360808,1729086641861,-151.0,0.00016077,2]
[340360809,1729086641870,-328.713992,0.00016077,2]
[340360810,1729086641880,-328.713992,0.00016077,2]
[340360811,1729086641889,-176.873272,0.00016077,2]
[340360812,1729086641899,-10000.0,0.00016077,2]
[340360813,1729086641908,-10000.0,0.00016077,2]
[340360814,1729086641920,-5765.062019,0.00016077,2]
[340360815,1729086641930,-151.0,0.00016077,2]
[340360816,1729086641939,-151.0,0.00016077,2]
[340360817,1729086641950,-430.67768504,0.00016086,2]
[340360818,1729086641959,-219.12141291,0.00016086,2]
[340360819,1729086641969,-230.77549363,0.00016086,2]
[340360820,1729086641979,-364.09146673,0.00016086,2]
[340360821,1729086641988,-213.88783484,0.00016086,2]
[340360822,1729086641998,-2000.0,0.00016087,2]
[340360823,1729086642008,-2000.0,0.00016087,2]
[340360824,1729086642020,-2000.0,0.00016087,2]
[340360825,1729086642033,-2045.48575784,0.00016087,2]
[340360826,1729086642043,-2500.0,0.00016139,2]
[340360827,1729086642052,-2500.0,0.00016139,2]
[340360828,1729086642061,-151.0,0.00016152,2]
[340360829,1729086642070,-1032.786721,0.00016152,2]
[340360830,1729086642079,-1032.786721,0.00016152,2]
[340360831,1729086642088,-10000.0,0.00016152,2]
[340360832,1729086642097,-10000.0,0.00016152,2]
[340360833,1729086642107,-557.270984,0.00016154,2]
[340360834,1729086642116,-151.0,0.00016154,2]
[340360835,1729086642126,-151.0,0.00016154,2]
[340360836,1729086642136,-3000.0,0.00016195,2]
[340360837,1729086642145,-3000.0,0.00016195,2]
[340360838,1729086642154,-3500.0,0.00016254,2]
[340360839,1729086642163,-3500.0,0.00016254,2]
[340360840,1729086642172,-23737.1826855,0.00016297,2]
[340360841,1729086642181,-13023.1572984,0.00016307,2]
[340360842,1729086642190,-23737.1826855,0.00016307,2]
[340360843,1729086642199,-4000.0,0.00016316,2]
[340360844,1729086642208,-4000.0,0.00016316,2]
[340360845,1729086642218,-151.0,0.00016317,2]
[340360846,1729086642228,-151.0,0.00016317,2]
[340360847,1729086642237,-557.270984,0.00016317,2]
[340360848,1729086642246,-245.538655,0.00016317,2]
[340360849,1729086642255,-245.538655,0.00016317,2]
[340360850,1729086642264,-151.0,0.00016317,2]
[340360851,1729086642277,-328.713992,0.00016317,2]
[340360852,1729086642287,-328.713992,0.00016317,2]
[340360853,1729086642296,-151.0,0.00016317,2]
[340360854,1729086642305,-151.0,0.00016317,2]
[340360855,1729086642314,-10000.0,0.00016317,2]
[340360856,1729086642323,-10000.0,0.00016317,2]
[340360857,1729086642332,-10000.0,0.00016317,2]
[340360858,1729086642342,-10000.0,0.00016317,2]
[340360859,1729086642351,-4500.0,0.00016382,2]
[340360860,1729086642360,-4500.0,0.00016382,2]
[340360861,1729086642369,-4080.28852776,0.00016449,2]
[340360862,1729086642379,-5000.0,0.00016449,2]
[340360863,1729086642389,-5500.0,0.00016519,2]
[340360864,1729086642398,-6000.0,0.00016591,2]
[340360865,1729086642407,-6500.0,0.00016665,2]
[340360866,1729086642416,-7000.0,0.00016741,2]
[340360867,1729086642426,-761.78022248,0.00016819,2]
[340360868,1729086642436,-4402.73345121,0.00017,2]
[340360869,1729086642445,-151.0,0.00017,2]
[340360870,1729086642455,-151.0,0.00017,2]
[340360871,1729086642465,-557.270984,0.00017,2]
[340360872,1729086642474,-245.538655,0.00017,2]
[340360873,1729086642484,-151.0,0.00017,2]
[340360874,1729086642493,-245.538655,0.00017,2]
[340360875,1729086642502,-217.741544,0.00017,2]
[340360876,1729086642512,-1032.786721,0.00017,2]
[340360877,1729086642525,-1032.786721,0.00017,2]
[340360878,1729086642535,-328.713992,0.00017,2]
[340360879,1729086642544,-328.713992,0.00017,2]
[340360880,1729086642554,-151.0,0.00017,2]
[340360881,1729086642563,-158.891529,0.00017,2]
[340360882,1729086642573,-151.0,0.0001735,2]
[340360883,1729086642583,-151.0,0.0001735,2]
[340360884,1729086642592,-557.270984,0.0001735,2]
[340360885,1729086642602,-245.538655,0.0001735,2]
[340360886,1729086642611,-245.538655,0.0001735,2]
[340360887,1729086642621,-328.713992,0.0001735,2]
[340360888,1729086642630,-328.713992,0.0001735,2]
[340360889,1729086642640,-151.0,0.0001735,2]
[340360890,1729086642650,-587.0,0.00017459,2]
[340360891,1729086642659,-23737.1826855,0.00017579,2]
[340360892,1729086642669,-13023.1572984,0.00017589,2]
[340360893,1729086642679,-151.0,0.00017599,2]
[340360894,1729086642688,-1032.786721,0.00017599,2]
[340360895,1729086642698,-1032.786721,0.00017599,2]
[340360896,1729086642708,-587.0,0.00017621,2]
[340360897,1729086642721,-151.0,0.00017769,2]
[340360898,1729086642730,-151.0,0.00017769,2]
[340360899,1729086642739,-245.538655,0.00017769,2]
[340360900,1729086642748,-245.538655,0.00017769,2]
[340360901,1729086642759,-328.713992,0.00017769,2]
[340360902,1729086642770,-328.713992,0.00017769,2]
[340360903,1729086642779,-4363.68841421,0.00017999,2]
[340360904,1729086642790,-1198.35684878,0.00018,10]
[340360905,1729086642800,-151.0,0.00018,2]
[340360906,1729086642809,-151.0,0.00018,2]
[340360907,1729086642819,-557.270984,0.00018,2]
[340360908,1729086642828,-151.0,0.00018,2]
[340360909,1729086642838,-245.538655,0.00018,2]
[340360910,1729086642848,-245.538655,0.00018,2]
[340360911,1729086642857,-1032.786721,0.00018,2]
[340360912,1729086642867,-1032.786721,0.00018,2]
[340360913,1729086642876,-328.713992,0.00018,2]
[340360914,1729086642886,-328.713992,0.00018,2]
[340360915,1729086642895,-151.0,0.00018,2]
[340360916,1729086642905,-150.01,0.00018003,2]
[340360917,1729086642914,-306.0,0.0001841,2]
[340360918,1729086642923,-306.0,0.00018485,2]
[340360919,1729086642932,-333.0022448,0.0001887,2]
[340360920,1729086642942,-150.112233,0.00019,2]
[340360921,1729086642952,-823.0,0.00019117,2]
[340360922,1729086642961,-4348.87969407,0.00019168,3]
[340360923,1729086642975,-19388.30299143,0.00019168,3]
[340360924,1729086642985,-151.0,0.00019178,2]
[340360925,1729086642995,-151.0,0.00019178,2]
[340360926,1729086643005,-182.663472,0.00019178,2]
[340360927,1729086643014,-359.53353657,0.00019178,2]
[340361097,1729086646730,-572.7780137,0.00015973,2]
[340361099,1729086646740,-500.0,0.00015973,2]
[340361101,1729086646750,-253.3807633,0.00016,2]
[340361103,1729086646761,-557.270984,0.00019178,2]
[340361105,1729086646775,-557.270984,0.00019178,2]
[340361107,1729086646784,-557.270984,0.00019178,2]
[340361109,1729086646796,-557.270984,0.00019178,2]
[340361111,1729086646805,-557.270984,0.00019178,2]
[340361113,1729086646814,-557.270984,0.00019178,2]
[340361115,1729086646823,-557.27099,0.00019178,2]
[340361117,1729086646832,-151.0,0.00019178,2]
[340361119,1729086646842,-173.439352,0.00019178,2]
[340361121,1729086646851,-245.538655,0.00019178,2]
[340361123,1729086646860,-245.538655,0.00019178,2]
[340361125,1729086646870,-245.538655,0.00019178,2]
[340361127,1729086646884,-245.538649,0.00019178,2]
[340361130,1729086646894,-1032.786721,0.00019178,2]
[340361131,1729086646904,-1032.786721,0.00019178,2]
[340361133,1729086646915,-1032.786721,0.00019178,2]
[340361136,1729086646925,-1032.786721,0.00019178,2]
[340361138,1729086646934,-1032.786721,0.00019178,2]
[340361140,1729086646943,-1032.786721,0.00019178,2]
[340361142,1729086646953,-1032.786721,0.00019178,2]
[340361144,1729086646963,-1032.786725,0.00019178,2]
[340361146,1729086646972,-328.713992,0.00019178,2]
[340361148,1729086646982,-328.713992,0.00019178,2]
[340361150,1729086646992,-328.713992,0.00019178,2]
[340361152,1729086647003,-328.713995,0.00019178,2]
[340361154,1729086647013,-151.0,0.00019178,2]
[340361156,1729086647028,-151.0,0.00019178,2]
[340361158,1729086647038,-151.0,0.00019178,2]
[340361160,1729086647048,-151.0,0.00019178,2]
[340361162,1729086647058,-189.274449,0.00019178,2]
[340361164,1729086647068,-165.387841,0.00019178,2]
[340361166,1729086647078,-206.0,0.00019178,2]
[340361168,1729086647088,-206.0,0.00019178,2]
[340361170,1729086647097,-206.0,0.00019178,2]
[340361172,1729086647107,-206.0,0.00019178,2]
[340361174,1729086647117,-206.0,0.00019178,2]
[340361176,1729086647127,-206.0,0.00019178,2]
[340361178,1729086647136,-206.0,0.00019178,2]
[340361180,1729086647146,-206.0,0.00019178,2]
[340361182,1729086647155,-206.0,0.00019178,2]
[340361184,1729086647165,-206.0,0.00019178,2]
[340361187,1729086647177,-206.0,0.00019178,2]
[340361189,1729086647186,-206.0,0.00019178,2]
[340361191,1729086647196,-206.0,0.00019178,2]
[340361193,1729086647206,-206.0,0.00019178,2]
[340361195,1729086647215,-206.0,0.00019178,2]
[340361197,1729086647225,-206.0,0.00019178,2]
[340361199,1729086647235,-153.0,0.00019178,2]
[340361201,1729086647244,-153.0,0.00019178,2]
[340361203,1729086647253,-153.0,0.00019178,2]
[340361205,1729086647263,-153.0,0.00019178,2]
[340361207,1729086647276,-153.0,0.00019178,2]
[340361209,1729086647285,-206.0,0.00019178,2]
[340361210,1729086647295,-206.0,0.00019178,2]
[340361212,1729086647304,-206.0,0.00019178,2]
[340361214,1729086647314,-206.0,0.00019178,2]
[340361216,1729086647324,-206.0,0.00019178,2]
[340361218,1729086647338,-206.0,0.00019178,2]
[340361220,1729086647349,-206.0,0.00019178,2]
[340361222,1729086647359,-206.0,0.00019178,2]
[340361224,1729086647369,-206.0,0.00019178,2]
[340361226,1729086647380,-206.0,0.00019178,2]
[340361227,1729086647390,-206.0,0.00019178,2]
[340361229,1729086647400,-206.0,0.00019178,2]
[340361231,1729086647411,-206.0,0.00019178,2]
[340361233,1729086647421,-206.0,0.00019178,2]
[340361235,1729086647431,-9699.57507801,0.00019196,3]
[340361242,1729086656533,157.0,0.00027,120]
[340361244,1729086726289,158.0,0.00027,120]
[340361245,1729086789875,24900.0,0.00013869,2]
[340361247,1729086852706,1204.721555,0.00013893,2]
[340361248,1729086919139,171.403827,0.00013878,2]
[340361249,1729086919356,171.403827,0.00013958,2]
[340361253,1729087065220,157.0,0.00027,120]
[340361255,1729087135133,157.0,0.00027,120]
[340361258,1729087330713,16439.4538211,0.0001395,2]
[340361259,1729087393095,-171.403827,0.00014039,2]
[340361260,1729087393121,-171.403827,0.00014119,2]
[340361261,1729087393146,-171.403827,0.00014199,2]
[340361262,1729087393174,-171.403827,0.0001428,2]
[340361263,1729087393199,-171.403827,0.0001436,2]
[340361264,1729087393229,-171.403827,0.0001444,2]
[340361265,1729087393254,-171.403827,0.00014521,2]
[340361266,1729087393279,-1204.721555,0.00014577,2]
[340361267,1729087393303,-6853.53405048,0.00014579,2]
[340361268,1729087393329,-171.403827,0.00014601,2]
[340361269,1729087393355,-300.0,0.00014676,2]
[340361270,1729087393380,-300.0,0.00014677,2]
[340361271,1729087393404,-151.0,0.00014679,2]
[340361272,1729087393429,-151.0,0.00014679,2]
[340361273,1729087393454,-151.0,0.00014779,2]
[340361274,1729087393478,-151.0,0.00014779,2]
[340361275,1729087393502,-500.0,0.000151,2]
[340361276,1729087393526,-500.0,0.0001512,2]
[340361277,1729087393549,-161.69810201,0.0001512,2]
[340361278,1729087393574,-500.0,0.0001512,2]
[340361279,1729087393599,-630.74783249,0.00015127,2]
[340361280,1729087393623,-503.96403049,0.00015147,2]
[340361281,1729087393647,-1000.0,0.00015147,2]
[340361282,1729087393675,-500.0,0.0001515,2]
[340361283,1729087393699,-502.98618079,0.0001515,2]
[340361284,1729087393724,-234.3372998,0.00015177,2]
[340361285,1729087393750,-1004.73216162,0.00015187,2]
[340361286,1729087393776,-501.83377637,0.000152,2]
[340361287,1729087393802,-1204.721555,0.00015262,2]
[340361288,1729087393826,-500.0,0.00015314,2]
[340361289,1729087393851,-772.73180934,0.00015322,2]
[340361290,1729087393875,-506.76823723,0.00015342,2]
[340361291,1729087393900,-6084.06269607,0.00015418,2]
[340361292,1729087393929,-500.0,0.0001545,2]
[340361293,1729087393956,-1000.0,0.00015477,2]
[340361294,1729087393983,-1500.0,0.00015517,2]
[340361295,1729087394008,-2000.0,0.00015564,2]
[340361296,1729087394034,-2500.0,0.00015616,2]
[340361297,1729087394059,-1080.28852776,0.00015672,2]
[340361298,1729087394083,-506.08782348,0.00015973,2]
[340361299,1729087394107,-502.98971341,0.00015973,2]
[340361300,1729087394132,-420.0,0.00016067,2]
[340361301,1729087394434,-420.0,0.00016145,2]
[340361302,1729087394458,-7858.2983189,0.00017181,2]
[340361303,1729087394483,-7858.2983189,0.0001739,2]
[340361304,1729087394507,-500.0,0.00017536,2]
[340361305,1729087394532,-500.0,0.00017536,2]
[340361306,1729087394556,-184.28798,0.00017563,2]
[340361307,1729087394580,-1000.0,0.00017563,2]
[340361308,1729087394605,-7858.2983189,0.00017569,2]
[340361309,1729087394630,-587.0,0.00017591,2]
[340361310,1729087394654,-1500.0,0.00017603,2]
[340361311,1729087394680,-2000.0,0.0001765,2]
[340361312,1729087394704,-2500.0,0.00017702,2]
[340361313,1729087394730,-3000.0,0.00017758,2]
[340361314,1729087394754,-587.0,0.00017759,2]
[340361315,1729087394779,-3500.0,0.00017817,2]
[340361316,1729087394803,-4000.0,0.0001788,2]
[340361317,1729087394827,-4500.0,0.00017945,2]
[340361318,1729087394850,-5000.0,0.00018012,2]
[340361319,1729087394877,-7858.2983189,0.00018043,2]
[340361320,1729087394903,-5500.0,0.00018082,2]
[340361321,1729087394933,-7858.2983189,0.0001815,2]
[340361322,1729087394961,-2261.78022248,0.00018154,2]
[340361323,1729087394989,-515.56425964,0.00018347,2]
[340361324,1729087395015,-360.0,0.00018347,2]
[340361325,1729087395042,-11635.0365385,0.00018348,2]
[340361326,1729087395069,-18230.3438512,0.00018348,2]
[340361327,1729087395094,-7858.2983189,0.00018467,2]
[340361328,1729087395118,-151.0,0.00018467,2]
[340361329,1729087395144,-151.0,0.00018467,2]
[340361330,1729087395175,-6084.06269603,0.00018632,2]
[340361331,1729087395203,-509.19998869,0.00018667,2]
[340361332,1729087395229,-7858.2983189,0.00018737,2]
[340361333,1729087395254,-151.0,0.00018767,2]
[340361334,1729087395280,-151.0,0.00018767,2]
[340361335,1729087395305,-151.0,0.00018767,2]
[340361336,1729087395331,-7858.29831897,0.00019006,2]
[340361337,1729087395356,-602.82341878,0.00019084,2]
[340361338,1729087395381,-150.01,0.00019177,2]
[340361339,1729087395408,-166.728086,0.00019178,2]
[340361340,1729087395438,-151.0,0.00019206,2]
[340361341,1729087395463,-151.0,0.00019206,2]
[340361342,1729087395488,-151.0,0.00019206,2]
[340361343,1729087395515,-490.745927,0.00019206,2]
[340361344,1729087395540,-490.745927,0.00019206,2]
[340361345,1729087395565,-151.0,0.00019206,2]
[340361346,1729087395589,-151.0,0.00019206,2]
[340361347,1729087395617,-151.0,0.00019206,2]
[340361348,1729087395643,-151.0,0.00019206,2]
[340361349,1729087395673,-151.0,0.00019206,2]
[340361350,1729087395698,-151.0,0.00019206,2]
[340361351,1729087395724,-233.923279,0.00019206,2]
[340361352,1729087395752,-164.356996,0.00019206,2]
[340361353,1729087395779,-164.356996,0.00019206,2]
[340361354,1729087395804,-150.0,0.00019206,2]
[340361355,1729087395829,-250.0,0.00019206,2]
[340361356,1729087395860,-222.156,0.00019206,2]
[340361357,1729087395895,-500.0,0.00019217,2]
[340361358,1729087395926,-551.26550179,0.00019217,2]
[340361359,1729087395957,-500.0,0.00019217,2]
[340361360,1729087395984,-450.40534038,0.00019217,2]
[340361361,1729087396012,-509.19998868,0.00019222,2]
[340361362,1729087396044,-1000.98673372,0.00019244,2]
[340361363,1729087396071,-823.0,0.00019258,2]
[340361364,1729087396099,-150.112233,0.000195,2]
[340361365,1729087396126,-823.0,0.00019535,2]
[340361366,1729087396153,-1000.0,0.00019536,2]
[340361367,1729087396182,-151.0,0.00019593,2]
[340361368,1729087396208,-151.0,0.00019593,2]
[340361369,1729087396235,-11635.0365385,0.00019593,3]
[340361370,1729087396264,-18230.3438512,0.00019593,3]
[340361371,1729087396292,-151.022685,0.00019603,2]
[340361372,1729087396411,-284.390726,0.00019603,2]
[340361373,1729087396440,-284.390726,0.00019603,2]
[340361374,1729087396467,-151.0,0.00019603,2]
[340361375,1729087396495,-151.0,0.00019603,2]
[340361376,1729087396521,-216.755712,0.00019603,2]
[340361377,1729087396553,-151.0,0.00019603,2]
[340361378,1729087396579,-409.086149,0.00019603,2]
[340361379,1729087396605,-409.086149,0.00019603,2]
[340361380,1729087396631,-151.0,0.00019603,2]
[340361381,1729087396656,-151.0,0.00019603,2]
[340361382,1729087396684,-151.0,0.00019603,2]
[340361383,1729087396711,-217.117132,0.00019603,2]
[340361384,1729087396736,-217.117132,0.00019603,2]
[340361385,1729087396761,-164.356996,0.00019603,2]
[340361386,1729087396787,-164.356996,0.00019603,2]
[340361387,1729087396812,-250.0,0.00019636,2]
[340361388,1729087396839,-151.0,0.00019636,2]
[340361389,1729087396865,-151.0,0.00019636,2]
[340361390,1729087396892,-309.836016,0.00019636,2]
[340361391,1729087396920,-309.836016,0.00019636,2]
[340361392,1729087396949,-151.0,0.00019636,2]
[340361393,1729087396976,-286.619269,0.00019636,2]
[340361394,1729087397004,-153.11,0.00019636,2]
[340361395,1729087397031,-4768.096,0.00019636,2]
[340361396,1729087397058,-527.0,0.00019636,2]
[340361397,1729087397083,-1157.0,0.00019636,2]
[340361398,1729087397107,-1806.0,0.00019636,2]
[340361399,1729087397132,-151.0,0.00019678,2]
[340361400,1729087397158,-151.0,0.00019678,2]
[340361401,1729087397187,-270.377239,0.00019678,2]
[340361402,1729087397212,-270.377239,0.00019678,2]
[340361403,1729087397236,-151.0,0.00019678,2]
[340361404,1729087397260,-509.19998868,0.00019778,2]
[340361405,1729087397290,-200.0,0.0001983,2]
[340361406,1729087397316,-150.112233,0.000199,2]